Cogmind - Beta 12 @@@ ROGUE MODE // 2023.11.08 @ 04:48:17 Player: Ev Result: Self-destructed Performance ------------- Evolutions (2) 1000 Regions Visited (5) 1000 Robots Destroyed (31) 155 Value Destroyed (835) 835 Prototype IDs (0) 0 Alien Tech Used (0) 0 Bonus (0) 0 TOTAL SCORE: 2990 Bonus ------- None Cogmind --------- Core Integrity 470/550 Matter 289/300 Energy 255/305 System Corruption 0% Temperature Cool (0) Movement Walking (190) Ox1 Location -8/Materials Parts ------- > --- POWER (2) -------- Improved Ion Engine Light Deuterium Engine > --- PROPULSION (3) --- Aluminum Leg Carbon-fiber Leg > --- UTILITY (4) ------ Microactuators Hardlight Generator Improved Shield Generator Hacking Suite > --- WEAPON (2) ------- Greatsword > --- INVENTORY (5) ---- Improved Light Armor Plating Medium Reactive Plating Hardlight Generator Hardlight Generator Component Analysis Suite Peak State ------------ > --- POWER ------------ Ion Engine Light Deuterium Engine > --- PROPULSION ------- Carbon-fiber Leg Carbon-fiber Leg VTOL Module > --- UTILITY ---------- Microactuators Shield Generator Improved Shield Generator Hacking Suite > --- WEAPON ----------- Greatsword > --- INVENTORY -------- Flight Unit Propulsion Shielding Component Analysis Suite Gauss Cannon [Rating: 34] Favorites ----------- Power Ion Engine Engine Ion Engine Propulsion Carbon-fiber Leg Leg Carbon-fiber Leg Wheel Wheel Flight Unit Flight Unit Utility Microactuators Device Microactuators Storage Small Storage Unit Processor Targeting Computer Hackware Hacking Suite Protection Propulsion Shielding Weapon Light Cannon Energy Gun Medium Laser Ballistic Gun Assault Rifle Ballistic Cannon Light Cannon Launcher Grenade Launcher Slashing Weapon Greatsword Build | -11 -10 -10 -9 -9 -8 ------- Run | Jun Mat Min Mat Min Mat Slots Evolved 4 | . . . 2 . 2 Power 1 | . . . . . 1 Propulsion 1 | . . . . . 1 Utility 2 | . . . 2 . . Weapon . | . . . . . . Parts Attached 44 | 6 8 . 7 8 15 Power 7 | 1 . . 1 1 4 Engine 7 | 1 . . 1 1 4 Core . | . . . . . . Reactor . | . . . . . . Propulsion 10 | 2 1 . 2 1 4 Treads . | . . . . . . Leg 4 | . . . . . 4 Wheel 3 | 2 1 . . . . Hover . | . . . . . . Flight 3 | . . . 2 1 . Utility 14 | 1 1 . 4 4 4 Device 6 | . . . . 3 3 Storage 1 | 1 . . . . . Processor 3 | . . . 3 . . Hackware 1 | . . . . . 1 Protection 3 | . 1 . 1 1 . Artifact . | . . . . . . Weapon 13 | 2 6 . . 2 3 Energy Gun 2 | 1 1 . . . . Energy Cannon . | . . . . . . Ballistic Gun 1 | 1 . . . . . Ballistic Cannon 4 | . 3 . . 1 . Launcher 2 | . 2 . . . . Special Weapon . | . . . . . . Impact Weapon . | . . . . . . Slashing Weapon 4 | . . . . 1 3 Piercing Weapon . | . . . . . . Special Melee Weapon . | . . . . . . Unidentified Prototypes . | . . . . . . Parts Lost 6 | . . . 2 . 4 Power . | . . . . . . Propulsion 3 | . . . 1 . 2 Utility 3 | . . . 1 . 2 Weapon . | . . . . . . Highest Loss Streak 2 | . . . 2 . 2 To Critical Strikes . | . . . . . . Average Slot Usage (%) 89 | . 98 100 97 91 82 Engine 14 | . 14 14 11 11 16 Leg 9 | . . . . . 19 Wheel 7 | . 28 28 5 . . Flight 6 | . . . 15 22 2 Device 17 | . . . . 24 25 Storage 3 | . 14 14 . . . Processor 4 | . . . 33 10 . Hackware 4 | . . . . . 8 Protection 6 | . 12 14 9 9 1 Energy Gun 1 | . 9 . . . . Ballistic Cannon 7 | . 7 28 22 6 . Slashing Weapon 5 | . . . . 7 8 Naked Turns . | . . . . . . Heaviest Build 28 | 14 19 19 14 14 28 Greatest Support 40 | 20 20 20 20 14 40 Greatest Overweight (x) 4 | 4 . . 3 1 1 Average Overweight (x) . | . . . . . . Largest Inventory Capacity 8 | 8 8 8 8 5 5 Average Capacity 5 | 7 8 8 5 5 5 Most Carried 8 | 2 8 8 7 5 5 Average Carried 4 | . 4 7 4 2 4 Final Capacity 8 | 8 8 8 5 5 5 Final Carried 8 | . 7 8 5 2 5 Class Distribution -------------------- 46% | Gladiator 38% | Mutant 13% | Scavenger-Gladiator Dominant Class ---------------- Mutant | -10/Materials Mutant | -10/Mines Mutant | -9/Materials Gladiator | -9/Mines Gladiator | -8/Materials Resources | -11 -10 -10 -9 -9 -8 ----------- Run | Jun Mat Min Mat Min Mat Matter Collected 844 | 196 84 212 136 92 124 Remotely . | . . . . . . Salvage Created 813 | . 106 73 85 . 549 Parts 68 | . 21 4 15 . 28 Haulers Intercepted . | . . . . . . Recyclers Shooed . | . . . . . . Parts Field Recycled . | . . . . . . Retrieved Matter . | . . . . . . Parts Self-Destructed . | . . . . . . Prevented . | . . . . . . Kills | -11 -10 -10 -9 -9 -8 ------- Run | Jun Mat Min Mat Min Mat Combat Hostiles Destroyed 27 | . 8 2 7 . 10 Melee 10 | . . . . . 10 Cannons 12 | . 3 2 7 . . AOE 5 | . 5 . . . . Classes Destroyed 5 | . 3 . 1 . 1 Tunneler 2 | . 2 . . . . Watcher 2 | . . . 1 . 1 Swarmer 12 | . 6 . 6 . . Grunt 12 | . 2 2 1 . 7 Sentry 3 | . . . . . 3 Best Kill Streak 5 | . 4 2 4 . 5 Combat Bots Only 5 | . 4 2 4 . 5 Max Kills in Single Turn 3 | . 3 1 1 . 1 Gunslinging . | . . . . . . Exploded 3 | . 3 . . . . Melee 1 | . . . . . 1 Uniques/NPCs Destroyed . | . . . . . . Combat | -11 -10 -10 -9 -9 -8 -------- Run | Jun Mat Min Mat Min Mat Damage Taken 1020 | . 164 92 155 . 609 Core 103 | . . . 23 . 80 Absorbed by Shields 169 | . . . . . 169 Redirected to Shielding 9 | . . . . . 9 Regen/Repaired (Parts) 116 | . . . . . 116 Core Remaining (%) 98 | 100 . 100 . 94 . Volleys Fired 29 | . 12 6 11 . . Largest 2 | . 2 2 2 . . Hottest 85 | . 85 70 70 . . Shots Fired 54 | . 20 12 22 . . Gun 6 | . 6 . . . . Cannon 40 | . 6 12 22 . . Launcher 8 | . 8 . . . . Special . | . . . . . . Kinetic 40 | . 6 12 22 . . Thermal 6 | . 6 . . . . Explosive 8 | . 8 . . . . Electromagnetic . | . . . . . . Robot Hit Streak 8 | . 4 2 8 . . Robot Miss Streak 2 | . 2 2 1 . . Penetration Max . | . . . . . . Secondary Targets . | . . . . . . Shots Hit Robots 55 | . 7 6 15 . 27 Core Hits 33 | . 11 3 9 . 10 Critical Kills . | . . . . . . Critical Parts Destroyed . | . . . . . . Critical Strikes 5 | . . . 1 . 4 Blast 1 | . . . 1 . . Sever 4 | . . . . . 4 Melee Attacks 37 | . . . . . 37 Impact . | . . . . . . Slashing 37 | . . . . . 37 Piercing . | . . . . . . Sneak Attacks . | . . . . . . Combat Hostiles . | . . . . . . Follow-up Attacks . | . . . . . . Damage Inflicted 2181 | . 510 103 240 . 1328 Guns 24 | . 24 . . . . Cannons 427 | . 84 103 240 . . Explosions 402 | . 402 . . . . Melee 1328 | . . . . . 1328 Ramming . | . . . . . . Kinetic 427 | . 84 103 240 . . Thermal 24 | . 24 . . . . Explosive 402 | . 402 . . . . Electromagnetic . | . . . . . . Impact . | . . . . . . Slashing 1328 | . . . . . 1328 Piercing . | . . . . . . Highest Corruption . | . . . . . . Average Corruption . | . . . . . . Corruption Purged . | . . . . . . Corruption Blocked . | . . . . . . Overload Shots . | . . . . . . Overflow Damage 42 | . . . . . 42 Projectiles . | . . . . . . Explosions . | . . . . . . Melee 42 | . . . . . 42 Knockbacks 4 | . 1 . 3 . . Impact . | . . . . . . Kinetic 4 | . 1 . 3 . . Secondary . | . . . . . . Self-Inflicted Damage 56 | . 56 . . . . Shots 2 | . 2 . . . . Rammed . | . . . . . . Targets Rammed . | . . . . . . Kicked . | . . . . . . Crushed . | . . . . . . Highest Temperature 132 | . 132 66 18 . 2 Average Temperature 27 | . 41 30 10 . 2 Received Heat Transfer 352 | . 18 51 6 . 277 Siege Activations . | . . . . . . Robots Corrupted . | . . . . . . Combat Hostiles . | . . . . . . Parts Fried . | . . . . . . Impact Corruptions . | . . . . . . Robots Melted . | . . . . . . Combat Hostiles . | . . . . . . Parts Melted . | . . . . . . Heat Transferred 74 | . 74 . . . . Parts Sabotaged . | . . . . . . Parts Stolen . | . . . . . . Parts Stripped . | . . . . . . Power Chain Reactions . | . . . . . . Missiles Intercepted . | . . . . . . Alert | -11 -10 -10 -9 -9 -8 ------- Run | Jun Mat Min Mat Min Mat Peak Influence 261 | . 261 166 242 94 238 Initial 101 | . . 101 64 94 . Average 106 | . 133 116 182 91 95 Maximum Alert Level 1 | . 1 . 1 . 1 Low Security (%) 90 | 100 65 100 48 100 96 Level 1 9 | . 34 . 51 . 3 Level 2 . | . . . . . . Level 3 . | . . . . . . Level 4 . | . . . . . . Level 5 . | . . . . . . High Security . | . . . . . . Max Security . | . . . . . . Squads Dispatched 5 | . 2 . . 1 2 Investigation 3 | . 1 . . 1 1 Extermination . | . . . . . . Reinforcement 2 | . 1 . . . 1 Assault . | . . . . . . Garrison . | . . . . . . Intercept . | . . . . . . Searches Triggered . | . . . . . . Construction Impeded . | . . . . . . Haulers Reinforced . | . . . . . . Active Scanning Responses . | . . . . . . Cargo Convoy Interrupts . | . . . . . . Stealth | -11 -10 -10 -9 -9 -8 --------- Run | Jun Mat Min Mat Min Mat Distress Signals 3 | . 1 . . . 2 Communications Jammed . | . . . . . . Distress Signals . | . . . . . . Times Spotted 45 | . 13 4 9 . 19 Peak Tracking Total 5 | . 4 2 3 . 5 Tactical Retreats 1 | . 1 . . . . Traps | -11 -10 -10 -9 -9 -8 ------- Run | Jun Mat Min Mat Min Mat Traps Triggered 1 | . 1 . . . . Indirectly . | . . . . . . Trap Hack Attempts . | . . . . . . Triggered . | . . . . . . Disarmed . | . . . . . . Reprogrammed . | . . . . . . Reused . | . . . . . . Traps Extracted . | . . . . . . Installed . | . . . . . . Triggered . | . . . . . . Machines | -11 -10 -10 -9 -9 -8 ---------- Run | Jun Mat Min Mat Min Mat Machines Disabled 2 | . 1 . 1 . . Max in Single Turn 1 | . 1 . 1 . . Machines Repaired . | . . . . . . Machines Sabotaged . | . . . . . . Overloaded Fab Kills . | . . . . . . Hacking | -11 -10 -10 -9 -9 -8 --------- Run | Jun Mat Min Mat Min Mat Machines Accessed 3 | . 1 . . 1 1 Terminals . | . . . . . . Fabricators . | . . . . . . Repair Stations 1 | . . . . . 1 Recycling Units 1 | . 1 . . . . Scanalyzers . | . . . . . . Garrison Access . | . . . . . . Total Hacks 9 | . 1 . . 1 7 Successful 9 | . 1 . . 1 7 Failed . | . . . . . . Catastrophic . | . . . . . . Database Lockouts . | . . . . . . Manual . | . . . . . . Terminals . | . . . . . . Fabricators . | . . . . . . Repair Stations 7 | . . . . . 7 Recycling Units 1 | . 1 . . . . Scanalyzers . | . . . . . . Garrison Access . | . . . . . . Terminal Hacks 1 | . . . . 1 . Open Door 1 | . . . . 1 . Fabricator Hacks . | . . . . . . Repair Station Hacks 7 | . . . . . 7 Scan Component 4 | . . . . . 4 Repair 3 | . . . . . 3 Recycling Unit Hacks 1 | . 1 . . . . Retrieve Components 1 | . 1 . . . . Scanalyzer . | . . . . . . Garrison Access Hacks . | . . . . . . Unauthorized Hacks . | . . . . . . Terminals . | . . . . . . Fabricators . | . . . . . . Repair Stations . | . . . . . . Recycling Units . | . . . . . . Scanalyzers . | . . . . . . Garrison Access . | . . . . . . Data Cores Recovered . | . . . . . . Used . | . . . . . . Hacking Detections 1 | . . . . . 1 Full Trace Events 1 | . . . . . 1 Feedback Events . | . . . . . . Feedback Blocked . | . . . . . . Robot Schematics Acquired . | . . . . . . Robots Built . | . . . . . . Authchips . | . . . . . . Time . | . . . . . . Total Robot Build Rating . | . . . . . . Part Schematics Acquired . | . . . . . . Parts Built . | . . . . . . Authchips . | . . . . . . Time . | . . . . . . Total Part Build Rating . | . . . . . . Parts Repaired 3 | . . . . . 3 Time 114 | . . . . . 114 Parts Recycled . | . . . . . . Recycled Matter . | . . . . . . Retrieved Matter . | . . . . . . Retrieved Components 5 | . 5 . . . . Parts Scanalyzed . | . . . . . . Part Schematics Acquired . | . . . . . . Parts Damaged . | . . . . . . Bothacking | -11 -10 -10 -9 -9 -8 ------------ Run | Jun Mat Min Mat Min Mat Used RIF Installer . | . . . . . . Robots Hacked . | . . . . . . Non-combat . | . . . . . . Combat . | . . . . . . Robot Hacks Applied . | . . . . . . Relay Couplers Released . | . . . . . . Fabnet Peak Effective % . | . . . . . . Robots Rewired . | . . . . . . Allies Hacked . | . . . . . . Hacks Repelled . | . . . . . . Allies | -11 -10 -10 -9 -9 -8 -------- Run | Jun Mat Min Mat Min Mat Total Allies . | . . . . . . Largest Group . | . . . . . . Highest-Rated Group . | . . . . . . Highest-Rated Ally . | . . . . . . Total Orders . | . . . . . . Ally Attacks . | . . . . . . Total Damage . | . . . . . . Kills . | . . . . . . Allies Corrupted . | . . . . . . Allies Melted 1 | . . . . . 1 Intel | -11 -10 -10 -9 -9 -8 ------- Run | Jun Mat Min Mat Min Mat Robot Analysis Total . | . . . . . . Derelict Logs Recovered 2 | . . 1 . 1 . Drone Launches . | . . . . . . Drone Recoveries . | . . . . . . Exploration | -11 -10 -10 -9 -9 -8 ------------- Run | Jun Mat Min Mat Min Mat Turns Passed 2087 | 47 223 272 158 411 976 Spaces Moved 1199 | 36 191 280 67 157 468 Core 14 | 12 . . 2 . . Treads . | . . . . . . Legs 406 | . . . . . 406 Wheels 513 | 24 191 280 18 . . Hover . | . . . . . . Flight 266 | . . . 47 157 62 Fastest Speed 34 | 50 80 80 80 34 34 Average Speed 104 | 97 80 80 110 60 144 Slowest Speed 250 | 250 80 80 200 117 190 Overloaded Moves . | . . . . . . Propulsion Burnouts . | . . . . . . Robots Hopped . | . . . . . . Cave-ins Triggered . | . . . . . . Exploration Rate (%) 32 | 3 45 70 8 33 33 Regions Visited 5 Branch Regions 2 Pre-discovered Areas . | . . . . . . Known Exits Taken . | . . . . . . Unknown Exits Taken 5 | 1 1 1 1 1 . Scrap Searched 1 | . . . . 1 . Spaces Dug . | . . . . . . Terrain Destroyed 27 | . 27 . . . . Melee . | . . . . . . Projectile . | . . . . . . AOE 27 | . 27 . . . . Terrain Rammed . | . . . . . . Walls Destroyed . | . . . . . . Machines Disabled . | . . . . . . Actions | -11 -10 -10 -9 -9 -8 --------- Run | Jun Mat Min Mat Min Mat Total 1927 | 47 241 317 129 473 720 Wait 527 | . 7 25 36 293 166 Move 1194 | 35 190 279 66 156 468 Hop . | . . . . . . Pick Up 59 | 6 16 4 5 7 21 Fast Attach 2 | . . . . . 2 Attach 22 | 6 2 . 5 1 8 Detach . | . . . . . . Swap 20 | . 6 . 2 7 5 Drop 37 | . 8 3 4 9 13 Fire 29 | . 12 6 11 . . Melee 37 | . . . . . 37 Ram . | . . . . . . Kick . | . . . . . . Crush . | . . . . . . Escape Stasis . | . . . . . . Rewire . | . . . . . . Trap . | . . . . . . Miscellaneous . | . . . . . . Route ------- -11/Junkyard -10/Materials (discovered 3 exits: *Mat x2 / [*Min]) -10/Mines -9/Materials -9/Mines -8/Materials History --------- Turn | Location | Event 33 | -11/Junkyard | Discovered new exit (range 12) 48 | -11/Junkyard | Entered Materials 130 | -10/Materials | Discovered new exit (range 6) 159 | -10/Materials | Discovered new exit (range 8) 224 | -10/Materials | Discovered new exit (range 13) 271 | -10/Materials | Entered Mines 311 | -10/Mines | Build established: Mutant 335 | -10/Mines | Received a Rocket Launcher from a helpful Derelict 360 | -10/Mines | Joined a pair of Derelicts in attacking an 0b10 outpost 404 | -10/Mines | Learned Materials interactive machine intel 535 | -10/Mines | Discovered new exit (range 8) 543 | -10/Mines | Entered Materials 543 | -9/Materials | Evolved 2 slots: Utility x2 544 | -9/Materials | Loaded intel: 17 interactive machine locations 685 | -9/Materials | Discovered new exit (range 14) 701 | -9/Materials | Entered Mines 732 | -9/Mines | Learned Materials trap positions 777 | -9/Mines | Met a Derelict shopkeep closing up shop 780 | -9/Mines | Discovered new exit (range 9) 1110 | -9/Mines | Build established: Gladiator 1112 | -9/Mines | Entered Materials 1112 | -8/Materials | Evolved 2 slots: Power x1, Propulsion x1 1113 | -8/Materials | Loaded intel: 25 trap records 1309 | -8/Materials | Repaired Greatsword 1349 | -8/Materials | Repaired Lgt. Deuterium Engine 1393 | -8/Materials | Repaired VTOL Module 2088 | -8/Materials | Self-destructed Last Messages --------------- G-47 Trooper destroyed. Carbon-fiber Leg destroyed. Destroyed Aluminum Leg. G-47 Trooper destroyed. Acquired Aluminum Leg. R-06 Scavenger collects Lgt. Treads. Acquired Insulated Plating. Dropped Insulated Plating. Acquired Med. Reactive Plating. Dropped Med. Reactive Plating. Acquired Axe. Dropped Greatsword. Dropped Axe. Dropped Hardlight Generator. Acquired Greatsword. Acquired Hardlight Generator. Acquired Med. Reactive Plating. Acquired 19 matter. K-01 Serf cleans the Repair Station. W-25 Informer sends out distress signal. Map ----- +----------------------------------------------------+ | """ ########??????????????????????????????????? | | """ # #??########????????????????????????? | | # """ #?? ##???????????????????????? | | ^ # """ #?? /????????????????????????? | | [ # """ #??? #????????????????????????? | | [[ #! #??? ?????????????????????????? | | [ # """ #??? ??????????????????????????? | | + """ #??? !??????????????????????????? | | # """ #??? ???????????????????????????? | | ### # #??? ????????????????????????????? | | # # """ #####+##???????????????????????????? | | + + """ + #???????????????????????????? | | ###### """ #### #???????????????????????????? | | #????# #??# #???????????????????????????? | | #????########??# #???????????????????????????? | | #??????????????# #???????????????????????????? | | ########?????????# #???????????????????????????? | | #?????????# #???????????????????????????? | | #??######?# #???????????????????????????? | | "" """ #??# # #???????????????????????????? | | "" """ #??# """ # #???????????????????????????? | | "" """ #??# """ + #???????????????????????????? | | "" """ #??# """ # #???????????????????????????? | | "" """ #??# # #???????????????????????????? | | #??# ?# #######+#####???????????????? | | ########??######?# @ g a ????????? | | ?????????????????# ????????? | | ###############??# u k ????????? | | #?#######################k?????????? | | ##### ##+## # #????????????????????????????? | | +###### # # # """ #????????????????????????????? | | ## + # + """ #????????????????????????????? | | ## # # # """ #????????????????????????????? | | ## # # # #????????????????????????????? | | ## # # #?#####????????????????????????????? | | ## # # ######?????????????????????????????? | | ## # # #?????????????????????????????? | | + #####!!]] !#?^^^?????????????????????????? | | # #???#!!]]!!#?^^^?????????????????????????? | | ####+# #???########?????????????????????????????? | | #??# #????????????????????????????????????????? | | #??# #????????????????????????????????????????? | | #??# ######???????????????????????????????????? | | #??# # #???????????????????????????????????? | | #??# + "#???????????????????????????????????? | | ???# # "#???????????????????????????????????? | | ####![ # "#???????????????????????????????????? | | =[%= + T#???????????????????????????????????? | | ####### # "#???????????????????????????????????? | | #######+# "#???????????????????????????????????? | +----------------------------------------------------+ Best States ------------- Heat Dissipation 31 Energy Generation 21 Energy Capacity 305 Matter Stores 300 Matter Capacity 300 Sight Range 16 Terrain Scan Density 10 Additional Mass Support 6 Armor Coverage 150 Propulsion Shielding 33 Melee Speed Boost 20 Evasion (%) 63 Targeting Accuracy 15 Offensive Hacking 10 Item Schematics ----------------- None Robot Schematics ------------------ None Fabricated ------------ Nothing Alien Tech Used ----------------- None Achievements -------------- None Challenges ------------ None Game ------ Seed CombatSurveybotActivator Manual? 0 Play Time 00:31:02 Cumulative 6.4 hours Start 2023.11.08 @ 04:22:04 End 2023.11.08 @ 04:48:17 Sessions 1 Manual Loads 0 Difficulty Rogue Special Mode None Game No. 19 Rogue 19 Adventurer 0 Explorer 0 Win Type - Total 0 Types 0/0/0/0/0/0/0/0/0 Lore% 5 Gallery% 13 Achievement% 9 Wizard Run 0 Options --------- ASCII 0 Keyboard 0 Movement Mouse Keybinds 0 Fullscreen 1 Font 24/Smallcaps Map View 76x50 Tactical HUD 0 Map Filters NONE Filters NONE Steam 1 RUN: 9c7950b1-a79f-498f-8b56-16a12eb1f47e